bitfinex/quotes_ETHUSD_20250403
["timestamp","ask_amount","ask_price","bid_price","bid_amount"]
[1743639436754,5.52944,1808.5,1808.4,6.08]
[1743639437127,5.52887,1808.7,1808.4,6.08]
[1743639437657,5.52944,1808.5,1808.4,6.08]
[1743639438558,5.52926,1808.6,1808.4,6.08]
[1743639438559,11.05864,1808.6,1808.4,6.08]
[1743639438925,5.52926,1808.6,1808.4,6.08]
[1743639439133,5.52926,1808.6,1808.5,0.608]
[1743639439331,11.05866,1808.6,1808.4,6.08]
[1743639439527,5.52926,1808.6,1808.4,6.08]
[1743639439739,5.52944,1808.5,1808.4,6.08]
[1743639441159,6.29574,1808.5,1808.4,6.08]
[1743639443056,5.52926,1808.6,1808.2,0.05529941]
[1743639443057,5.52918,1808.6,1808.2,0.05529941]
[1743639443361,11.05848,1808.6,1808.2,12.33584935]
[1743639443562,11.05848,1808.6,1808.2,6.75033994]
[1743639443730,11.05848,1808.6,1808.2,6.80563614]
[1743639443926,11.0592,1808.5,1808.2,1.27542614]
[1743639444132,5.52947,1808.5,1808.2,7.35542622]
[1743639444333,5.52947,1808.5,1808.3,0.73554262]
[1743639445162,11.0591,1808.5,1808.3,0.73554262]
[1743639445636,5.5292,1808.6,1808.3,0.73554262]
[1743639445837,11.0585,1808.6,1808.3,0.73554262]
[1743639446677,5.52945,1808.5,1808.3,0.73554262]
[1743639447370,11.05907,1808.5,1808.3,0.73554262]
[1743639448167,5.52975,1808.4,1808.3,0.73554262]
[1743639448379,5.52975,1808.4,1808.2,7.30012994]
[1743639448380,5.53005,1808.3,1808.2,6.08]
[1743639448667,11.06241,1808.0,1807.8,12.9118]
[1743639448854,5.53127,1807.9,1807.8,6.08]
[1743639449256,0.8197,1808.1,1807.8,6.688]
[1743639449459,5.53057,1808.2,1807.8,12.21947]
[1743639449768,11.06112,1808.2,1807.9,0.775]
[1743639449968,11.06112,1808.2,1807.9,0.83030644]
[1743639450169,11.06111,1808.2,1807.9,0.83030642]
[1743639450471,5.53055,1808.2,1807.9,0.83030642]
[1743639451169,5.53012,1808.3,1807.9,12.42748642]
[1743639451339,5.53012,1808.3,1808.0,6.77370864]
[1743639451541,5.53012,1808.3,1808.1,0.05530053]
[1743639452275,11.05973,1808.4,1808.1,0.05530053]
[1743639452456,5.53009,1808.3,1808.1,6.13530053]
[1743639453168,0.8327,1808.6,1808.1,6.13530053]
[1743639453371,5.53008,1808.3,1808.2,0.61353005]
[1743639453941,5.52946,1808.5,1808.2,12.22386005]
[1743639454140,5.52946,1808.5,1808.2,6.69353005]
[1743639454342,5.52946,1808.5,1808.3,0.669353]
[1743639455068,5.52975,1808.4,1808.3,0.669353]
[1743639455250,5.52975,1808.4,1808.2,6.69353005]
[1743639455966,5.52975,1808.4,1808.2,6.74882726]
[1743639456340,5.52946,1808.5,1808.2,6.74882726]
[1743639456541,11.05909,1808.5,1808.2,6.74882726]
[1743639456861,11.05915,1808.5,1808.2,12.27910726]
[1743639457044,11.05915,1808.5,1808.3,1.22791073]
[1743639457252,11.05915,1808.5,1808.3,7.29291073]
[1743639458176,5.52975,1808.4,1808.3,7.29291073]
[1743639458479,5.53005,1808.3,1808.2,6.08]
[1743639459878,5.52975,1808.4,1808.2,6.08]
[1743639460043,11.05965,1808.4,1808.2,6.08]
[1743639461088,5.53005,1808.3,1808.2,6.08]
[1743639461291,5.53151,1807.9,1807.8,6.08]
[1743639461492,5.53219,1807.6,1807.5,6.08]
[1743639462162,5.53158,1807.8,1807.5,6.08]
[1743639462367,5.53158,1807.8,1807.6,0.608]
[1743639462567,11.0634,1807.8,1807.6,0.608]
[1743639462751,5.53131,1807.9,1807.6,0.608]
[1743639462951,5.53131,1807.9,1807.6,0.66331363]
[1743639463174,5.5307,1808.1,1807.6,0.608]
[1743639463381,11.06095,1808.2,1807.8,11.06294]
[1743639463680,11.06095,1808.2,1807.9,13.30560084]
[1743639463681,5.53041,1808.2,1807.9,13.30560084]
[1743639463865,5.53041,1808.2,1807.9,13.250294]
[1743639464067,5.53041,1808.2,1807.9,18.781534]
[1743639464791,5.53068,1808.1,1807.9,13.250294]
[1743639465089,5.53097,1808.0,1807.9,13.250294]
[1743639465475,5.53097,1808.0,1807.9,6.08]
[1743639466288,11.06098,1808.2,1807.9,6.08]
[1743639466496,5.53071,1808.1,1807.9,6.846]
[1743639466659,5.53042,1808.2,1807.9,6.846]
[1743639466856,5.52955,1808.5,1808.1,5.53045]
[1743639467191,11.05798,1808.7,1808.4,6.31512]
[1743639467368,5.52898,1808.7,1808.5,6.08]
[1743639467692,5.52856,1808.8,1808.5,11.66470913]
[1743639467993,5.52764,1809.1,1808.8,0.7979]
[1743639468289,5.52764,1809.1,1808.8,6.8779]
[1743639468459,11.05547,1809.1,1808.8,6.08]
[1743639468656,5.52793,1809.0,1808.8,6.08]
[1743639468860,5.52735,1809.2,1808.8,11.60832]
[1743639469091,5.52763,1809.1,1808.9,1.160832]
[1743639469266,11.05542,1809.1,1808.9,1.160832]
[1743639469470,5.52763,1809.1,1808.9,1.160832]
[1743639469986,5.52791,1809.0,1808.9,1.160832]
[1743639470189,6.28091,1809.0,1808.8,6.08]
[1743639470493,5.52822,1808.9,1808.8,6.08]
[1743639472862,0.753,1809.0,1808.4,6.08]
[1743639473205,5.52949,1808.5,1808.1,11.61054]
[1743639473363,5.52925,1808.6,1808.2,12.771404]
[1743639473556,5.52949,1808.5,1808.3,6.062]
[1743639473779,3.753,1809.0,1808.3,6.11729364]
[1743639473972,11.0561,1809.0,1808.6,5.52902]
[1743639474173,11.0561,1809.0,1808.7,6.614902]
[1743639474385,5.52796,1809.0,1808.7,12.694902]
[1743639474860,11.05545,1809.1,1808.7,18.223582]
[1743639475190,5.52763,1809.1,1808.7,18.223582]
[1743639475361,11.05544,1809.1,1808.7,18.223582]
[1743639475561,6.28339,1809.3,1808.8,2.6456582]
[1743639475764,5.52741,1809.2,1808.9,0.05528095]
[1743639475994,6.28339,1809.3,1808.8,2.6456582]
[1743639475995,0.7562,1809.3,1808.8,2.6456582]
[1743639476173,5.52777,1809.1,1808.8,2.6456582]
[1743639476598,5.52777,1809.1,1808.8,8.1741582]
[1743639476801,5.52777,1809.1,1808.9,0.81741582]
[1743639477164,5.52725,1809.3,1809.0,6.08]
[1743639477565,5.52731,1809.2,1809.0,6.08]
[1743639478789,5.52761,1809.1,1809.0,6.08]
[1743639478969,5.52731,1809.2,1809.0,6.08]
[1743639479169,5.52731,1809.2,1809.0,7.37574158]
[1743639479370,5.52761,1809.1,1809.0,6.08]
[1743639479602,5.52873,1808.8,1808.5,6.08]
[1743639480266,11.05793,1808.7,1808.5,6.08]
[1743639480465,5.52944,1808.5,1808.4,6.08]
[1743639480693,5.52944,1808.5,1808.3,6.06]
[1743639481562,11.05915,1808.5,1808.3,6.06]
[1743639481885,11.05908,1808.5,1808.3,6.06]
[1743639482083,5.52975,1808.4,1808.3,6.06]
[1743639482285,5.53005,1808.3,1808.2,6.08]
[1743639482915,5.53066,1808.1,1808.0,6.08]
[1743639483093,5.53097,1808.0,1807.9,6.08]
[1743639483407,5.53158,1807.8,1807.7,6.06]
[1743639484275,11.06286,1807.9,1807.7,6.06]
[1743639484476,5.53158,1807.8,1807.7,6.06]
[1743639484870,5.53138,1807.9,1807.7,6.06]
[1743639485170,5.53007,1808.3,1807.8,11.61146]
[1743639485376,5.53007,1808.3,1807.9,6.08]
[1743639485601,5.53007,1808.3,1808.0,5.53093]
[1743639486171,5.52975,1808.4,1808.0,5.53093]
[1743639486371,5.52975,1808.4,1808.0,5.58610173]
[1743639486596,5.52948,1808.5,1808.1,12.14916017]
[1743639486993,11.05973,1808.4,1808.1,6.61861017]
[1743639487301,5.53097,1808.0,1807.9,6.08]
[1743639487604,5.52986,1808.4,1808.0,5.53087]
[1743639487977,11.05982,1808.4,1808.0,11.66617263]
[1743639488303,5.53007,1808.3,1808.0,11.61087]
[1743639488503,11.05982,1808.4,1808.0,11.61087]
[1743639488706,5.53024,1808.3,1808.0,7.794209]
[1743639489092,5.53043,1808.2,1808.0,6.08]
[1743639489490,5.53066,1808.1,1808.0,6.08]
[1743639489987,5.53043,1808.2,1808.0,6.08]
[1743639490183,5.53008,1808.3,1808.0,6.08]
[1743639490404,0.8296,1808.6,1808.1,6.08]
[1743639490710,5.52962,1808.5,1808.1,12.771619]
[1743639491314,5.52962,1808.5,1808.1,18.302139]
[1743639491512,5.52962,1808.5,1808.1,12.771599]
[1743639492005,5.52978,1808.4,1808.2,0.05529688]
[1743639492179,5.52978,1808.4,1808.2,6.08]
[1743639492379,5.53005,1808.3,1808.2,6.08]
[1743639494578,5.52978,1808.4,1808.2,6.08]
[1743639494779,5.52946,1808.5,1808.2,6.9024]
[1743639494978,5.52946,1808.5,1808.2,12.43275]
[1743639495208,11.88802,1808.6,1808.2,14.228971]
[1743639495780,6.35877,1808.6,1808.3,5.53004]
[1743639496111,5.52917,1808.6,1808.3,5.53004]
[1743639496681,11.05849,1808.6,1808.2,19.759221]
[1743639497113,5.52886,1808.7,1808.3,11.60999]
[1743639497331,5.52824,1808.9,1808.6,5.5291]
[1743639497499,11.05663,1808.9,1808.5,5.52928]
[1743639497839,5.52824,1808.9,1808.5,11.11384833]
[1743639498052,5.52824,1808.9,1808.5,11.05856]
[1743639498201,5.52797,1809.0,1808.7,5.52866]
[1743639498540,5.52772,1809.1,1808.8,6.08]
[1743639498829,11.05552,1809.1,1808.8,6.08]
[1743639499023,11.05616,1809.0,1808.8,6.08]
[1743639499239,5.52803,1809.0,1808.8,6.08]
[1743639500137,11.05613,1809.0,1808.8,6.08]
[1743639500311,5.52803,1809.0,1808.8,6.08]
[1743639500512,6.29552,1808.9,1808.8,6.08]
[1743639502232,11.05871,1808.6,1808.3,12.138]
[1743639503258,5.52944,1808.5,1808.3,6.08]
[1743639504358,5.52928,1808.6,1808.3,11.60996]
[1743639504856,6.29561,1808.9,1808.4,6.13529644]
[1743639505023,5.52816,1809.0,1808.6,5.52889]
[1743639505228,5.52826,1808.9,1808.6,17.66489]
[1743639505413,11.05664,1808.9,1808.6,17.66489]
[1743639505621,11.05571,1809.1,1808.7,5.58401825]
[1743639505815,5.52795,1809.0,1808.7,7.90890907]
[1743639506022,5.52782,1809.1,1808.7,7.90890907]
[1743639506023,0.7502,1809.2,1808.7,8.46017907]
[1743639506230,5.52762,1809.1,1808.8,5.52829]
[1743639507129,5.52678,1809.4,1809.0,5.52771]
[1743639507365,5.52678,1809.4,1809.1,0.552771]
[1743639507642,11.05368,1809.4,1809.1,0.552771]
[1743639509046,5.52678,1809.4,1809.1,0.552771]
[1743639509218,5.527,1809.3,1809.0,12.136]
[1743639509645,0.7502,1809.5,1809.0,12.136]
[1743639509851,5.52745,1809.2,1809.0,12.136]
[1743639510651,11.05417,1809.3,1809.0,12.136]
[1743639511021,5.52761,1809.1,1809.0,12.136]
[1743639511323,5.52699,1809.3,1809.0,12.136]
[1743639511523,11.05419,1809.3,1809.0,12.136]
[1743639512352,5.52733,1809.2,1809.0,12.136]
[1743639512527,11.0548,1809.2,1809.0,12.136]
[1743639513657,0.7502,1809.5,1809.0,7.2696]
[1743639513837,11.0536,1809.4,1809.1,0.8042]
[1743639514028,5.52581,1809.7,1809.1,0.8042]
[1743639514243,6.27691,1810.0,1809.5,5.52622]
[1743639514429,5.52519,1809.9,1809.6,6.053]
[1743639514829,5.52577,1809.7,1809.6,6.053]
[1743639515242,5.52577,1809.7,1809.5,6.08]
[1743639515435,5.52527,1809.9,1809.5,11.60619]
[1743639515640,11.05062,1809.9,1809.5,19.451042]
[1743639515856,5.52527,1809.9,1809.5,19.451042]
[1743639516261,5.52527,1809.9,1809.6,5.52599]
[1743639516987,11.0506,1809.9,1809.5,19.451042]
[1743639517356,5.52554,1809.8,1809.5,8.398582]
[1743639517551,5.52554,1809.8,1809.5,6.08]
[1743639517757,5.52554,1809.8,1809.5,11.60624]
[1743639518088,5.52521,1809.9,1809.5,11.60624]
[1743639518388,6.2769,1810.0,1809.6,11.05197]
[1743639518600,5.52461,1810.1,1809.8,5.52539]
[1743639518889,5.52461,1810.1,1809.8,11.57739]
[1743639519087,0.7685,1810.3,1809.9,5.52513]
[1743639519389,5.52338,1810.5,1810.2,5.52423]
[1743639519561,5.52338,1810.5,1810.2,11.57623]
[1743639519769,5.52338,1810.5,1810.2,17.65623]
[1743639520159,1.104643,1810.5,1810.2,12.132]
[1743639520530,6.33238,1810.7,1810.2,12.132]
[1743639520531,5.52394,1810.3,1810.2,12.132]
[1743639520663,5.52394,1810.3,1810.2,6.052]
[1743639521205,5.52383,1810.4,1810.2,6.052]
[1743639521358,8.52318,1810.6,1810.2,11.57613]
[1743639521558,5.52345,1810.5,1810.2,17.65613]
[1743639521797,5.52345,1810.5,1810.2,12.132]
[1743639522294,14.04621,1810.6,1810.2,12.132]
[1743639522467,5.52337,1810.5,1810.2,18.84739592]
[1743639522670,5.52337,1810.5,1810.3,0.7691]
[1743639522864,0.8095,1810.7,1810.3,6.29281]
[1743639522865,11.04569,1810.7,1810.3,6.29281]
[1743639523064,5.52246,1810.8,1810.3,0.7691]
[1743639523265,11.04468,1810.9,1810.5,5.52324]
[1743639523493,5.52244,1810.8,1810.6,6.049]
[1743639523807,5.52244,1810.8,1810.6,6.862]
[1743639523973,0.786,1810.8,1810.5,1.160324]
[1743639524335,5.52333,1810.5,1810.4,6.08]
[1743639524466,5.52272,1810.7,1809.9,18.44575]
[1743639524662,5.52378,1810.4,1810.0,7.369325]
[1743639524893,5.52378,1810.4,1810.0,12.894055]
[1743639525214,5.52427,1810.2,1810.0,1.844575]
[1743639525366,5.52427,1810.2,1809.9,18.44584]
[1743639525763,0.630872,1810.7,1810.1,5.52455]
[1743639525764,0.8218,1810.7,1810.1,5.52455]
[1743639526087,5.52313,1810.6,1810.3,0.7728]
[1743639526289,11.04637,1810.6,1810.3,6.8208]
[1743639526473,5.52341,1810.5,1810.3,6.8208]
[1743639526670,5.52313,1810.6,1810.3,6.8208]
[1743639526882,5.52333,1810.5,1810.3,8.607701]
[1743639527390,5.52333,1810.5,1810.3,6.8208]
[1743639527592,5.52333,1810.5,1810.3,0.7728]
[1743639527764,5.52333,1810.5,1810.3,6.8208]
[1743639530503,11.0469,1810.5,1810.3,6.048]
[1743639530675,5.52364,1810.4,1810.3,6.048]
[1743639530875,5.52282,1810.7,1810.3,12.78455]
[1743639531087,11.04577,1810.7,1810.3,12.78455]
[1743639531497,5.52303,1810.6,1810.3,12.78455]
[1743639533087,0.8295,1810.9,1810.3,13.3408]
[1743639533383,0.005,1810.9,1810.8,6.31082]
[1743639533591,0.005,1810.9,1810.8,19.620173]
[1743639533907,0.005,1810.9,1810.8,13.309353]
[1743639534317,0.005,1810.9,1810.8,7.263353]
[1743639535997,0.005,1810.9,1810.8,12.785773]
[1743639536391,0.005,1810.9,1810.8,13.599473]
[1743639538996,0.005,1810.9,1810.8,8.077053]
[1743639539195,0.005,1810.9,1810.7,5.52271]
[1743639539396,0.005,1810.9,1810.8,5.52242]
[1743639539812,0.005,1810.9,1810.8,6.37693298]
[1743639540127,0.005,1810.9,1810.8,6.32172]
[1743639540335,0.005,1810.9,1810.8,0.7993]
[1743639540631,0.005,1810.9,1810.7,5.52261]
[1743639540928,0.005,1810.9,1810.6,0.7993]
[1743639541128,5.52291,1810.7,1810.4,12.9145]
[1743639541331,0.7715,1810.8,1810.4,18.438]
[1743639541499,5.52287,1810.7,1810.4,12.123]
[1743639541899,0.7715,1810.8,1810.4,6.08]
[1743639541900,5.52333,1810.5,1810.4,6.08]
[1743639542323,5.52303,1810.6,1810.4,6.08]
[1743639542324,11.04631,1810.6,1810.4,6.08]
[1743639542632,5.52303,1810.6,1810.4,6.08]
[1743639543135,5.5232,1810.6,1810.4,6.08]
[1743639543303,5.52445,1810.2,1809.8,6.043]
[1743639543705,11.04894,1810.2,1809.8,11.56834]
[1743639543906,5.52408,1810.3,1809.9,5.5251]
[1743639544109,5.52349,1810.5,1810.0,5.5248]
[1743639544304,0.7591,1810.6,1810.1,6.63248]
[1743639544509,6.28217,1810.6,1810.2,5.57934941]
[1743639544809,6.28217,1810.6,1810.2,11.62234941]
[1743639545030,6.28217,1810.6,1810.2,11.56711]
[1743639545208,6.28217,1810.6,1810.2,11.56704]
[1743639545417,5.5234,1810.5,1810.3,1.156704]
[1743639545615,5.52394,1810.3,1810.2,6.043]
[1743639545927,5.52364,1810.4,1810.2,6.043]
[1743639546128,6.28225,1810.6,1810.2,6.043]
[1743639546436,5.52252,1810.8,1810.4,5.52349]
[1743639546736,11.04524,1810.8,1810.4,5.52349]
[1743639546941,5.52252,1810.8,1810.4,5.52349]
[1743639547138,5.52252,1810.8,1810.4,11.04692]
[1743639547327,5.52252,1810.8,1810.3,5.52389]
[1743639547638,6.30873,1810.9,1810.4,0.552389]
[1743639547639,5.52313,1810.6,1810.4,0.552389]
[1743639547838,5.52313,1810.6,1810.2,13.60939]
[1743639548044,5.52369,1810.4,1810.2,7.2553]
[1743639548211,5.52356,1810.5,1810.2,7.2553]
[1743639548406,5.52305,1810.6,1810.2,12.77941]
[1743639548839,11.04634,1810.6,1810.2,12.77941]
[1743639549035,5.52288,1810.7,1810.3,12.325541]
[1743639549238,5.52245,1810.8,1810.4,5.52344]
[1743639549542,11.04504,1810.8,1810.4,5.52344]
[1743639549743,5.52245,1810.8,1810.4,5.52344]
[1743639549943,11.04507,1810.8,1810.4,5.52344]
[1743639550139,6.30872,1810.9,1810.5,5.52325]
[1743639550342,11.83103,1810.9,1810.5,11.04646]
[1743639550537,0.7866,1810.9,1810.4,1.9206881]
[1743639550747,5.52301,1810.7,1810.4,1.9206881]
[1743639550948,5.52301,1810.7,1810.4,7.4442681]
[1743639551355,0.005,1810.9,1810.8,5.52242]
[1743639551560,0.005,1810.9,1810.8,12.32102]
[1743639552148,0.005,1810.9,1810.8,12.7278901]
[1743639552444,0.005,1811.1,1811.0,6.27341]
[1743639552619,0.005,1811.1,1811.0,12.40860843]
[1743639552817,0.005,1811.1,1811.0,17.14646984]
[1743639553139,1e-05,1811.1,1811.0,17.14646984]
[1743639554246,0.71814617,1812.2,1811.0,17.14646984]
[1743639554247,0.71814617,1812.2,1812.0,5.51874]
[1743639554422,0.71814617,1812.2,1812.1,17.69563201]
[1743639554627,0.7806,1812.9,1812.2,0.7632]
[1743639554628,6.29669,1812.9,1812.2,0.7632]
[1743639554946,5.51742,1812.5,1812.2,2.603564]
[1743639555148,5.51712,1812.6,1812.2,6.042]
[1743639555324,0.005,1812.7,1812.2,6.042]
[1743639555325,5.5217,1812.7,1812.2,11.55994]
[1743639555524,5.51728,1812.5,1812.2,6.042]
[1743639555724,5.51785,1812.3,1812.2,6.042]
[1743639555939,0.7539,1812.4,1812.1,6.04]
[1743639556142,6.27554,1812.7,1812.1,7.25104174]
[1743639556320,5.5174,1812.5,1812.1,7.25104174]
[1743639556520,5.5174,1812.5,1812.1,12.714301]
[1743639556723,5.51699,1812.6,1812.1,12.714301]
[1743639557023,5.51699,1812.6,1812.2,5.51804]
[1743639557223,5.51699,1812.6,1812.1,12.714101]
[1743639557421,0.005,1812.7,1812.2,6.7895001]
[1743639557738,5.51777,1812.4,1812.3,6.04]
[1743639557943,6.34564,1812.5,1812.3,6.04]
[1743639558241,5.51767,1812.4,1812.2,6.04]
[1743639558445,5.51719,1812.6,1812.2,11.55814]
[1743639558623,0.005,1812.7,1811.8,6.49880314]
[1743639558819,5.51785,1812.3,1811.8,12.01795314]
[1743639559149,5.51732,1812.5,1812.0,5.51859]
[1743639559453,5.51732,1812.5,1812.1,5.57346792]
[1743639559655,5.51732,1812.5,1812.1,6.38446792]
[1743639559822,5.51711,1812.6,1812.1,13.09310371]
[1743639560023,5.52164,1812.7,1812.3,5.51772]
[1743639560327,0.005,1812.7,1812.4,6.038]
[1743639560655,0.005,1812.7,1812.4,11.55554]
[1743639561152,0.005,1812.7,1812.4,23.15295]
[1743639561355,0.005,1812.7,1812.5,5.51713]
[1743639561648,0.005,1812.7,1812.5,6.33239587]
[1743639561818,0.005,1812.7,1812.6,11.59693]
[1743639562024,0.005,1812.7,1812.6,6.08]
[1743639562254,0.005,1812.7,1812.6,6.037]
[1743639562550,0.005,1812.7,1812.6,12.23364]
[1743639562751,0.005,1812.7,1812.6,6.037]
[1743639562953,5.52163,1812.7,1812.6,6.037]
[1743639563729,5.51696,1812.6,1812.5,6.037]
[1743639563951,5.51754,1812.4,1812.3,6.08]
[1743639564250,5.51754,1812.4,1812.0,17.69081689]
[1743639564443,5.51754,1812.4,1812.1,1.76908169]
[1743639564642,5.51725,1812.5,1812.1,7.28751169]
[1743639565163,5.51694,1812.6,1812.1,7.28735169]
[1743639565372,6.33835,1812.7,1812.3,5.51782]
[1743639565599,6.33835,1812.7,1812.3,17.11546]
[1743639565728,0.005,1812.7,1812.4,13.32024458]
[1743639566080,0.005,1812.7,1812.6,6.31483]
[1743639566222,0.005,1812.7,1812.6,6.36998398]
[1743639566673,0.005,1812.7,1812.6,6.31483]
[1743639566862,5.52178,1812.7,1812.5,6.08]
[1743639567030,0.005,1812.7,1812.4,6.036]
[1743639567230,0.005,1812.7,1812.4,7.36828208]
[1743639567459,5.52174,1812.7,1812.4,6.036]
[1743639567828,5.52174,1812.7,1812.4,6.09116981]
[1743639568060,5.52174,1812.7,1812.4,6.036]
[1743639568430,5.52174,1812.7,1812.4,11.6085598]
[1743639568431,0.005,1812.7,1812.4,11.6085598]
[1743639568631,0.005,1812.7,1812.4,11.55339]
[1743639568838,0.005,1812.7,1812.3,7.28682084]
[1743639569077,5.51743,1812.5,1812.4,6.035]
[1743639570029,5.51743,1812.5,1812.4,7.2465]
[1743639570238,5.51704,1812.6,1812.4,7.2465]
[1743639571027,11.03418,1812.6,1812.4,6.035]
[1743639571232,11.03418,1812.6,1812.0,6.08]
[1743639571233,5.51724,1812.5,1812.0,6.08]
[1743639571469,5.51826,1812.2,1812.0,12.115]
[1743639572362,5.51744,1812.5,1812.1,11.59833]
[1743639572663,5.51707,1812.6,1812.3,6.33084]
[1743639572961,5.52175,1812.7,1812.4,12.8022526]
[1743639573159,5.52175,1812.7,1812.4,12.747084]
[1743639573570,0.005,1812.7,1812.5,0.05516617]
[1743639573759,0.005,1812.7,1812.5,5.57238617]
[1743639574161,5.51569,1813.1,1812.5,5.57238617]
[1743639574162,5.80221733,1813.5,1812.8,0.7804]
[1743639574380,5.51311,1813.9,1813.4,5.51433]
[1743639574666,0.28782569,1813.9,1813.7,5.51335]
[1743639574873,11.02326,1814.4,1813.9,6.31047]
[1743639575073,5.51195,1814.3,1814.0,6.066]
[1743639575239,5.51146,1814.4,1814.0,6.066]
[1743639575441,5.51213,1814.2,1814.0,6.066]
[1743639575744,5.51267,1814.0,1813.8,0.7976]
[1743639575944,6.30578,1813.9,1813.6,6.111]
[1743639576147,0.7926,1813.9,1813.6,6.111]
[1743639576352,5.51318,1813.9,1813.6,6.111]
[1743639576553,5.51329,1813.8,1813.6,6.111]
[1743639576749,5.51318,1813.9,1813.6,6.111]
[1743639576965,5.51254,1814.1,1813.7,0.7976]
[1743639577139,0.7926,1814.3,1813.6,6.111]
[1743639577357,5.51258,1814.1,1813.6,6.111]
[1743639577543,5.51258,1814.1,1813.6,11.62488]
[1743639577746,5.51298,1813.9,1813.6,6.111]
[1743639577975,5.51354,1813.8,1813.6,6.111]
[1743639578171,5.51359,1813.7,1813.6,6.111]
[1743639578343,5.51403,1813.6,1813.2,13.0496]
[1743639578540,5.51403,1813.6,1813.2,18.56469]
[1743639578770,5.51453,1813.4,1813.2,12.252]
[1743639578969,5.51377,1813.7,1813.2,12.66413882]
[1743639579162,5.51421,1813.5,1813.2,13.9305527]
[1743639579343,5.51421,1813.5,1813.2,13.51841388]
[1743639579547,5.51379,1813.7,1813.2,19.03338388]
[1743639579761,0.7926,1813.9,1813.2,13.51841388]
[1743639579968,6.30588,1813.9,1813.5,5.51405]
[1743639580169,6.29601,1814.4,1813.9,5.51285]
[1743639580382,11.80774,1814.4,1814.0,6.221]
[1743639580674,5.51151,1814.4,1814.1,0.7931]
[1743639580877,5.51121,1814.5,1814.1,6.92822237]
[1743639581257,5.51121,1814.5,1814.1,12.44059237]
[1743639581572,5.51108,1814.6,1814.2,1.29917376]
[1743639581746,11.02219,1814.6,1814.2,1.29917376]
[1743639581948,5.51037,1814.8,1814.3,5.51155]
[1743639582177,11.02086,1814.8,1814.3,5.51155]
[1743639582362,5.51061,1814.7,1814.3,6.85022084]
[1743639582674,5.51129,1814.5,1814.3,6.206]
[1743639583056,5.51129,1814.5,1814.2,6.08]
[1743639583294,5.51129,1814.5,1813.8,6.08]
[1743639583295,5.51264,1814.1,1813.8,6.08]
[1743639583495,5.51287,1814.0,1813.7,6.206]
[1743639584680,5.51237,1814.1,1813.7,11.7195]
[1743639584991,5.51237,1814.1,1813.8,1.17195]
[1743639585282,5.51359,1813.7,1813.6,6.08]
[1743639585450,5.51402,1813.6,1813.4,12.291]
[1743639585655,5.51419,1813.5,1813.4,12.291]
[1743639586071,5.51402,1813.6,1813.4,12.291]
[1743639586288,5.51365,1813.7,1813.4,13.59545]
[1743639587190,5.51036,1814.8,1813.9,6.08]
[1743639587488,0.7572,1815.1,1813.9,6.08]
[1743639587489,5.51073,1814.7,1814.3,5.51157]
[1743639587787,5.50919,1815.2,1814.7,5.51035]
[1743639587991,5.50919,1815.2,1814.8,18.02207]
[1743639588197,5.5087,1815.4,1815.0,6.34053]
[1743639588369,5.50874,1815.3,1815.0,0.8309]
[1743639588569,11.01768,1815.3,1815.0,0.8309]
[1743639588769,5.50874,1815.3,1815.0,0.8859896]
[1743639588996,5.79561831,1815.5,1815.0,0.8309]
[1743639589293,5.79561831,1815.5,1814.9,6.08]
[1743639589294,5.50704,1815.9,1815.5,5.50797]
[1743639589494,5.50601,1816.2,1815.6,6.55506949]
[1743639589698,3.0,1816.1,1815.6,12.58]
[1743639589894,5.50707,1815.9,1815.6,12.58]
[1743639590095,5.50707,1815.9,1815.6,13.838]
[1743639590306,5.79351927,1816.2,1815.6,13.838]
[1743639590307,5.50688,1816.0,1815.7,6.8862]
[1743639590606,5.79361927,1816.2,1815.6,6.5]
[1743639590607,5.50704,1815.9,1815.6,6.5]
[1743639590813,5.50677,1816.0,1815.0,6.8334]
[1743639591123,5.50802,1815.6,1815.2,5.50898]
[1743639591412,5.5077,1815.7,1815.3,0.60597547]
[1743639591709,5.50749,1815.8,1815.4,0.7534]
[1743639591953,5.50837,1815.5,1815.3,6.528]
[1743639592200,5.51024,1814.8,1814.7,6.08]
[1743639592374,5.51045,1814.8,1814.5,6.55]
[1743639592697,5.51102,1814.6,1814.3,6.55]
[1743639592900,5.51117,1814.5,1814.3,7.205]
[1743639593270,11.02196,1814.6,1814.3,7.205]
[1743639593470,5.51118,1814.5,1814.3,7.205]
[1743639593682,5.51086,1814.6,1814.3,7.205]
[1743639594068,5.51119,1814.5,1814.3,7.205]
[1743639594268,5.51086,1814.6,1814.3,7.205]
[1743639594569,11.02271,1814.5,1814.3,7.205]
[1743639594771,5.51146,1814.4,1814.3,7.205]
[1743639595115,5.51146,1814.4,1814.3,6.55]
[1743639596305,5.51127,1814.5,1814.3,6.55]
[1743639596514,5.51146,1814.4,1814.3,6.55]
[1743639597184,5.50895,1815.3,1814.8,5.50997]
[1743639597378,5.50895,1815.3,1814.9,12.9458003]
[1743639597576,5.50907,1815.2,1814.9,13.4608]
[1743639598379,5.50907,1815.2,1814.9,18.97069]
[1743639599002,5.50907,1815.2,1814.9,13.4608]
[1743639599203,5.50907,1815.2,1814.9,6.8638]